[Event "St Kilda East and Caulfield Chess Club RAPID Term 3, 2025"]
[Site "st kilda east, Australia"]
[Date "2025.07.21"]
[Round "1.5"]
[White "Yong, Leonard"]
[Black "O'Connor, Alistair"]
[Result "1-0"]
[TimeControl "13 minutes per game plus 2 seconds from move 1"]
[WhiteElo "368"]
[BlackElo "1000"]

1. e4 {[%emt 00:31:31]} e6 {[%emt 00:00:04]} 2. Nf3 {[%emt 00:00:03]} d5 {[%emt
00:00:02]} 3. d3 {[%emt 00:00:18]} Nc6 {[%emt 00:00:23]} 4. Nc3 {[%emt
00:00:05]} Nf6 {[%emt 00:00:07]} 5. Be3 {[%emt 00:00:10]} d4 {[%emt 00:00:07]}
6. Nxd4 {[%emt 00:00:04]} Nxd4 {[%emt 00:00:03]} 7. Bxd4 {[%emt 00:00:04]} Qxd4
{[%emt 00:00:05]} 8. Be2 {[%emt 00:00:08]} Bc5 {[%emt 00:00:32]} 9. O-O {[%emt
00:00:15]} O-O {[%emt 00:00:10]} 10. Nb5 {[%emt 00:00:27]} Qd8 {[%emt
00:00:13]} 11. d4 {[%emt 00:00:35]} Bb6 {[%emt 00:00:07]} 12. e5 {[%emt
00:00:24]} Nd5 {[%emt 00:00:06]} 13. Bc4 {[%emt 00:00:35]} c6 {[%emt 00:00:09]}
14. Nd6 {[%emt 00:00:26]} Bc7 {[%emt 00:00:12]} 15. Ne4 {[%emt 00:00:23]} b5
{[%emt 00:00:54]} 16. Bd3 {[%emt 00:00:28]} Nf4 {[%emt 00:00:03]} 17. Qf3
{[%emt 00:00:26]} Nxd3 {[%emt 00:00:17]} 18. Qxd3 {[%emt 00:00:11]} Qd5 {[%emt
00:00:17]} 19. Rfe1 {[%emt 00:00:22]} Rd8 {[%emt 00:00:07]} 20. c3 {[%emt
00:00:34]} a5 {[%emt 00:00:41]} 21. Qg3 {[%emt 00:00:14]} Kf8 {[%emt 00:01:34]}
22. Qh4 {[%emt 00:01:20]} h6 {[%emt 00:00:28]} 23. Nd6 {[%emt 00:01:21]} Rxd6
{[%emt 00:00:02]} 24. exd6 {[%emt 00:00:04]} Qxd6 {[%emt 00:00:02]} 25. Re4
{[%emt 00:00:24]} Bb7 {[%emt 00:00:15]} 26. Rae1 {[%emt 00:00:07]} Qe7 {[%emt
00:00:15]} 27. Qh5 {[%emt 00:00:40]} c5 {[%emt 00:00:16]} 28. d5 {[%emt
00:01:12]} Bxd5 {[%emt 00:00:09]} 29. Qxd5 {[%emt 00:00:17]} exd5 {[%emt
00:00:09]} 30. Rxe7 {[%emt 00:00:03]} Bd6 {[%emt 00:00:08]} 31. Rd7 {[%emt
00:00:09]} Rb8 {[%emt 00:01:30]} 32. Rxd6 {[%emt 00:00:03]} b4 {[%emt
00:00:02]} 33. cxb4 {[%emt 00:00:13]} axb4 {[%emt 00:00:13]} 34. b3 {[%emt
00:00:05]} c4 {[%emt 00:00:03]} 35. Rxd5 {[%emt 00:00:09]} c3 {[%emt 00:00:07]}
36. Rc5 {[%emt 00:00:12]} Ra8 {[%emt 00:00:03]} 37. Re2 {[%emt 00:00:17]} Rd8
{[%emt 00:00:05]} 38. g3 {[%emt 00:00:22]} Rd1+ {[%emt 00:00:18]} 39. Kg2
{[%emt 00:00:04]} Rb1 {[%emt 00:00:02]} 40. Rc8# {[%clk 00:13:00]} {[%emt
00:00:13]} 1-0

[Event "St Kilda East and Caulfield Chess Club RAPID Term 3, 2025"]
[Site "st kilda east, Australia"]
[Date "2025.07.21"]
[Round "1.2"]
[White "Karboulahanos, Kris"]
[Black "Shore, Isaac"]
[Result "1-0"]
[TimeControl "13 minutes per game plus 2 seconds from move 1"]
[WhiteElo "1147"]
[BlackElo "521"]

1. d4 {[%emt 01:16:45]} f5 {[%emt 00:00:02]} 2. c4 {[%emt 00:00:08]} Nf6 {[%emt
00:00:02]} 3. Nc3 {[%emt 00:00:03]} g6 {[%emt 00:00:02]} 4. e3 {[%emt
00:00:09]} Bg7 {[%emt 00:00:03]} 5. Bd3 {[%emt 00:00:08]} d6 {[%emt 00:00:04]}
6. Nge2 {[%emt 00:00:09]} e5 {[%emt 00:00:02]} 7. f4 {[%emt 00:00:12]} Nbd7
{[%emt 00:00:58]} 8. O-O {[%emt 00:00:37]} b6 {[%emt 00:00:06]} 9. dxe5 {[%emt
00:00:08]} dxe5 {[%emt 00:00:04]} 10. fxe5 {[%emt 00:00:04]} Nxe5 {[%emt
00:00:03]} 11. Bc2 {[%emt 00:00:58]} Ba6 {[%emt 00:00:38]} 12. Ba4+ {[%emt
00:00:37]} c6 {[%emt 00:00:16]} 13. Nd4 {[%emt 00:00:20]} Bxc4 {[%emt
00:00:26]} 14. Nxc6 {[%emt 00:00:48]} Qxd1 {[%emt 00:00:43]} 15. Rxd1 {[%emt
00:00:17]} Nxc6 {[%emt 00:01:04]} 16. Bxc6+ {[%emt 00:00:05]} Kf7 {[%emt
00:00:26]} 17. Bxa8 {[%emt 00:00:05]} Rxa8 {[%emt 00:00:07]} 18. b3 {[%emt
00:00:29]} Ne4 {[%emt 00:00:28]} 19. Rd7+ {[%emt 00:00:22]} Kf8 {[%emt
00:00:17]} 20. Ba3+ {[%emt 00:01:10]} Kg8 {[%emt 00:00:23]} 21. bxc4 {[%emt
00:00:09]} Bxc3 {[%emt 00:00:03]} 22. Rad1 {[%emt 00:00:03]} Bf6 {[%emt
00:00:43]} 23. Be7 {[%emt 00:00:34]} Bxe7 {[%emt 00:01:27]} 24. Rxe7 {[%emt
00:00:09]} Nc3 {[%emt 00:00:30]} 25. Rdd7 {[%emt 00:00:11]} a5 {[%emt
00:00:49]} 26. Rxh7 {[%emt 00:00:20]} Ne4 {[%emt 00:00:24]} 27. Rdg7+ {[%emt
00:00:25]} Kf8 {[%emt 00:00:11]} 28. Rxg6 {[%emt 00:00:03]} Re8 {[%emt
00:00:26]} 29. Rxb6 {[%emt 00:00:36]} Rd8 {[%emt 00:00:13]} 30. Rh8+ {[%emt
00:00:08]} Ke7 {[%emt 00:00:01]} 31. Rxd8 {[%emt 00:00:03]} Kxd8 {[%emt
00:00:02]} 32. Ra6 {[%emt 00:00:05]} Nc3 {[%emt 00:00:22]} 33. Rxa5 {[%emt
00:00:03]} Kc7 {[%emt 00:00:01]} 34. h4 {[%emt 00:00:05]} Kb6 {[%emt 00:00:17]}
35. Rxf5 {[%emt 00:00:07]} Nxa2 {[%emt 00:00:17]} 36. h5 {[%emt 00:00:01]} Nc3
{[%emt 00:00:02]} 37. h6 {[%emt 00:00:02]} 1-0

[Event "St Kilda East and Caulfield Chess Club RAPID Term 3, 2025"]
[Site "st kilda east, Australia"]
[Date "2025.07.21"]
[Round "1.1"]
[White "Cukierman, David"]
[Black "Rosenberger, Oliver"]
[Result "0-1"]
[TimeControl "13 minutes per game plus 2 seconds from move 1"]
[WhiteElo "551"]
[BlackElo "1675"]

1. e4 {[%emt 00:11:15]} d6 2. Nf3 {[%emt 00:00:08]} Nf6 {[%emt 00:00:03]} 3.
Nc3 {[%emt 00:00:05]} Bg4 {[%emt 00:00:03]} 4. Be2 {[%emt 00:00:04]} c6 {[%emt
00:00:01]} 5. O-O {[%emt 00:00:05]} e6 {[%emt 00:00:01]} 6. d4 {[%emt
00:00:48]} Be7 {[%emt 00:00:01]} 7. e5 {[%emt 00:00:05]} dxe5 {[%emt 00:00:02]}
8. Nxe5 {[%emt 00:00:21]} Bxe2 {[%emt 00:00:03]} 9. Qxe2 {[%emt 00:00:07]} Qxd4
{[%emt 00:00:28]} 10. Bg5 {[%emt 00:01:14]} O-O {[%emt 00:00:21]} 11. Rad1
{[%emt 00:00:19]} Qb6 {[%emt 00:00:02]} 12. b3 {[%emt 00:01:22]} h6 {[%emt
00:00:16]} 13. Na4 {[%emt 00:01:53]} Qa5 {[%emt 00:00:02]} 14. Nc4 {[%emt
00:00:32]} Qxg5 {[%emt 00:00:04]} 15. f4 {[%emt 00:00:30]} Qg4 {[%emt
00:00:17]} 16. Qe5 {[%emt 00:00:23]} Nbd7 {[%emt 00:00:15]} 17. Qc7 {[%emt
00:00:47]} b5 {[%emt 00:00:55]} 18. Ne5 {[%emt 00:00:07]} Nxe5 {[%emt
00:00:08]} 19. fxe5 {[%emt 00:00:07]} bxa4 {[%emt 00:00:14]} 20. exf6 {[%emt
00:00:04]} Bxf6 {[%emt 00:00:04]} 21. Rd3 {[%emt 00:00:23]} axb3 {[%emt
00:00:06]} 22. Rg3 {[%emt 00:00:01]} Qd4+ {[%emt 00:00:24]} 23. Kh1 {[%emt
00:00:12]} bxa2 {[%emt 00:00:03]} 24. c3 {[%emt 00:00:19]} Qe4 {[%emt
00:00:39]} 25. h3 {[%emt 00:00:44]} Qb1 {[%emt 00:00:03]} 26. Qa5 {[%emt
00:00:24]} Qxf1+ {[%emt 00:00:05]} 27. Kh2 {[%emt 00:00:03]} a1=Q {[%emt
00:00:06]} 28. Qxa1 {[%emt 00:00:38]} Qxa1 {[%emt 00:00:04]} 0-1

[Event "St Kilda East and Caulfield Chess Club RAPID Term 3, 2025"]
[Site "st kilda east, Australia"]
[Date "2025.07.21"]
[Round "1.4"]
[White "Bambridge, Greg"]
[Black "Kave, Gideon"]
[Result "1-0"]
[TimeControl "13 minutes per game plus 2 seconds from move 1"]
[WhiteElo "1081"]
[BlackElo "427"]

1. e4 {[%emt 00:03:16]} e5 {[%emt 00:00:03]} 2. Nf3 {[%emt 00:00:02]} Nc6
{[%emt 00:00:07]} 3. d4 {[%emt 00:00:01]} f5 {[%emt 00:00:17]} 4. exf5 {[%emt
00:00:26]} d6 {[%emt 00:00:13]} 5. dxe5 {[%emt 00:00:13]} dxe5 {[%emt
00:00:04]} 6. Qxd8+ {[%emt 00:00:02]} Nxd8 {[%emt 00:00:14]} 7. Nxe5 {[%emt
00:00:03]} Bxf5 {[%emt 00:00:06]} 8. Bc4 {[%emt 00:00:24]} Ne6 {[%emt
00:00:23]} 9. O-O {[%emt 00:00:31]} O-O-O {[%emt 00:00:04]} 10. Nf7 {[%emt
00:00:03]} Rd4 {[%emt 00:00:56]} 11. Bb3 {[%emt 00:00:12]} Nf6 {[%emt
00:01:01]} 12. Nxh8 {[%emt 00:00:04]} Bc5 {[%emt 00:00:38]} 13. Be3 {[%emt
00:00:41]} Rg4 {[%emt 00:00:28]} 14. Nc3 {[%emt 00:00:51]} Ne4 {[%emt
00:01:29]} 15. Nxe4 {[%emt 00:00:15]} Bxe4 {[%emt 00:00:03]} 16. Bxe6+ {[%emt
00:00:03]} Kd8 {[%emt 00:00:29]} 17. Bxg4 {[%emt 00:00:04]} Bd6 {[%emt
00:00:09]} 18. Nf7+ {[%emt 00:00:07]} Ke7 {[%emt 00:00:04]} 19. Nxd6 {[%emt
00:00:03]} cxd6 {[%emt 00:00:01]} 20. Rfe1 {[%emt 00:00:03]} Kf6 {[%emt
00:00:09]} 21. Bxa7 {[%emt 00:00:05]} d5 {[%emt 00:00:11]} 22. c4 {[%emt
00:00:09]} d4 {[%emt 00:00:13]} 23. Rxe4 d3 {[%emt 00:00:07]} 24. Rd4 {[%emt
00:00:17]} b6 {[%emt 00:00:15]} 25. Rd1 {[%emt 00:00:06]} d2 {[%emt 00:00:07]}
26. R1xd2 {[%emt 00:00:02]} b5 {[%emt 00:00:02]} 27. Rd7 {[%emt 00:00:10]} Kg6
{[%emt 00:00:05]} 28. Bd4 {[%emt 00:00:08]} bxc4 {[%emt 00:00:12]} 29. h4
{[%emt 00:00:34]} Kh6 {[%emt 00:00:16]} 30. Bxg7+ {[%emt 00:00:10]} Kg6 {[%emt
00:00:03]} 31. R2d6# {[%emt 00:00:07]} 1-0

[Event "St Kilda East and Caulfield Chess Club RAPID Term 3, 2025"]
[Site "st kilda east, Australia"]
[Date "2025.07.21"]
[Round "2.3"]
[White "Lopata, Felix"]
[Black "Longe, Mathieu"]
[Result "1/2-1/2"]
[TimeControl "13 minutes per game plus 2 seconds from move 1"]
[WhiteElo "1088"]
[BlackElo "699"]

1. d4 {[%clk 00:13:00]} d5 {[%clk 00:13:00]} {[%emt 00:00:02]} 2. c4 {[%clk
00:13:01]} {[%emt 00:00:01]} c6 {[%clk 00:13:01]} {[%emt 00:00:02]} 3. Nc3
{[%clk 00:13:02]} {[%emt 00:00:01]} Nf6 {[%clk 00:12:52]} {[%emt 00:00:10]} 4.
cxd5 {[%clk 00:13:02]} {[%emt 00:00:02]} cxd5 {[%clk 00:12:40]} {[%emt
00:00:14]} 5. Nf3 {[%clk 00:13:00]} {[%emt 00:00:04]} Nc6 {[%clk 00:12:38]}
{[%emt 00:00:04]} 6. Bg5 {[%clk 00:12:58]} {[%emt 00:00:04]} Bg4 {[%clk
00:11:44]} {[%emt 00:00:56]} 7. e3 {[%clk 00:12:58]} {[%emt 00:00:02]} e6
{[%clk 00:11:40]} {[%emt 00:00:07]} 8. Bd3 {[%clk 00:12:56]} {[%emt 00:00:04]}
h6 {[%clk 00:11:19]} {[%emt 00:00:23]} 9. Bf4 {[%clk 00:12:43]} {[%emt
00:00:15]} Bd6 {[%clk 00:10:59]} {[%emt 00:00:22]} 10. Bxd6 {[%clk 00:12:34]}
{[%emt 00:00:10]} Qxd6 {[%clk 00:10:56]} {[%emt 00:00:05]} 11. h3 {[%clk
00:12:35]} {[%emt 00:00:02]} Bh5 {[%clk 00:10:53]} {[%emt 00:00:05]} 12. O-O
{[%clk 00:12:25]} {[%emt 00:00:11]} O-O {[%clk 00:10:41]} {[%emt 00:00:15]} 13.
Be2 {[%clk 00:12:06]} {[%emt 00:00:22]} Bxf3 {[%clk 00:10:33]} {[%emt
00:00:09]} 14. Bxf3 {[%clk 00:12:04]} {[%emt 00:00:03]} a5 {[%clk 00:10:26]}
{[%emt 00:00:10]} 15. Rc1 {[%clk 00:12:04]} {[%emt 00:00:02]} a4 {[%clk
00:10:12]} {[%emt 00:00:15]} 16. a3 {[%clk 00:12:01]} {[%emt 00:00:05]} Qd7
{[%clk 00:09:30]} {[%emt 00:00:45]} 17. Nxa4 {[%clk 00:11:57]} {[%emt
00:00:06]} Qd8 {[%clk 00:08:58]} {[%emt 00:00:33]} 18. Nc5 {[%clk 00:11:56]}
{[%emt 00:00:04]} Qc7 {[%clk 00:08:17]} {[%emt 00:00:43]} 19. Re1 {[%clk
00:11:45]} {[%emt 00:00:12]} b6 {[%clk 00:07:51]} {[%emt 00:00:28]} 20. Nd3
{[%clk 00:11:20]} {[%emt 00:00:27]} Qd6 {[%clk 00:07:38]} {[%emt 00:00:15]} 21.
Re2 {[%clk 00:10:29]} {[%emt 00:00:53]} Na5 {[%clk 00:07:20]} {[%emt 00:00:20]}
22. Nb4 {[%clk 00:10:16]} {[%emt 00:00:14]} Nc4 {[%clk 00:07:13]} {[%emt
00:00:10]} 23. Rxc4 {[%clk 00:10:10]} {[%emt 00:00:08]} dxc4 {[%clk 00:07:09]}
{[%emt 00:00:06]} 24. Bxa8 {[%clk 00:10:10]} {[%emt 00:00:02]} Rxa8 {[%clk
00:07:06]} {[%emt 00:00:05]} 25. e4 {[%clk 00:09:52]} {[%emt 00:00:20]} Qf4
{[%clk 00:06:09]} {[%emt 00:00:59]} 26. e5 {[%clk 00:09:35]} {[%emt 00:00:20]}
Nd5 {[%clk 00:06:02]} {[%emt 00:00:09]} 27. Nxd5 {[%clk 00:09:34]} {[%emt
00:00:03]} exd5 {[%clk 00:06:02]} {[%emt 00:00:02]} 28. Re3 {[%clk 00:08:58]}
{[%emt 00:00:38]} b5 {[%clk 00:05:35]} {[%emt 00:00:29]} 29. Rf3 {[%clk
00:08:55]} {[%emt 00:00:05]} Qe4 {[%clk 00:05:25]} {[%emt 00:00:13]} 30. Re3
{[%clk 00:08:39]} {[%emt 00:00:18]} Qf5 {[%clk 00:05:01]} {[%emt 00:00:25]} 31.
Rg3 {[%clk 00:07:54]} {[%emt 00:00:47]} Re8 {[%clk 00:04:37]} {[%emt 00:00:26]}
32. Qd2 {[%clk 00:07:50]} {[%emt 00:00:06]} Kh7 {[%clk 00:04:28]} {[%emt
00:00:11]} 33. Rf3 {[%clk 00:07:41]} {[%emt 00:00:12]} Qe6 {[%clk 00:03:28]}
{[%emt 00:01:02]} 34. Qf4 {[%clk 00:07:29]} {[%emt 00:00:13]} Rf8 {[%clk
00:03:19]} {[%emt 00:00:12]} 35. Kh2 {[%clk 00:07:10]} {[%emt 00:00:22]} Qb6
{[%clk 00:03:11]} {[%emt 00:00:09]} 36. Qf5+ {[%clk 00:06:56]} {[%emt
00:00:16]} Kg8 {[%clk 00:03:08]} {[%emt 00:00:06]} 37. Qf4 {[%clk 00:06:34]}
{[%emt 00:00:23]} b4 {[%clk 00:03:07]} {[%emt 00:00:03]} 38. axb4 {[%clk
00:06:28]} {[%emt 00:00:08]} Qxb4 {[%clk 00:03:07]} {[%emt 00:00:02]} 39. e6
{[%clk 00:06:26]} {[%emt 00:00:04]} Qe7 {[%clk 00:02:32]} {[%emt 00:00:36]} 40.
exf7+ {[%clk 00:06:22]} {[%emt 00:00:06]} Rxf7 {[%clk 00:02:27]} {[%emt
00:00:08]} 41. Qb8+ {[%clk 00:06:10]} {[%emt 00:00:14]} Rf8 {[%clk 00:02:22]}
{[%emt 00:00:07]} 42. Rxf8+ {[%clk 00:05:45]} {[%emt 00:00:27]} Qxf8 {[%clk
00:02:21]} {[%emt 00:00:02]} 43. Qb5 {[%clk 00:05:36]} {[%emt 00:00:11]} Qd6+
{[%clk 00:02:19]} {[%emt 00:00:04]} 44. g3 {[%clk 00:05:28]} {[%emt 00:00:11]}
Qe6 {[%clk 00:01:58]} {[%emt 00:00:22]} 45. h4 {[%clk 00:04:20]} {[%emt
00:01:10]} Qe4 {[%clk 00:01:54]} {[%emt 00:00:06]} 46. Qc5 {[%clk 00:04:01]}
{[%emt 00:00:21]} Kh7 {[%clk 00:01:39]} {[%emt 00:00:17]} 47. h5 {[%clk
00:03:29]} {[%emt 00:00:34]} Qf5 {[%clk 00:01:30]} {[%emt 00:00:10]} 48. g4
{[%clk 00:02:43]} {[%emt 00:00:48]} Qxf2+ {[%clk 00:01:16]} {[%emt 00:00:15]}
49. Kh3 {[%clk 00:02:43]} {[%emt 00:00:03]} Qf3+ {[%clk 00:01:12]} {[%emt
00:00:06]} 50. Kh4 {[%clk 00:02:35]} {[%emt 00:00:09]} Qf2+ {[%clk 00:01:09]}
{[%emt 00:00:05]} 51. Kh3 {[%clk 00:02:36]} {[%emt 00:00:02]} Qf3+ {[%clk
00:01:08]} {[%emt 00:00:03]} 1/2-1/2

[Event "St Kilda East and Caulfield Chess Club RAPID Term 3, 2025"]
[Site "st kilda east, Australia"]
[Date "2025.07.21"]
[Round "2.4"]
[White "Nash, Paul"]
[Black "Bambridge, Greg"]
[Result "0-1"]
[TimeControl "13 minutes per game plus 2 seconds from move 1"]
[WhiteElo "730"]
[BlackElo "1081"]

1. e4 {[%clk 00:13:01]} e5 {[%clk 00:12:55]} {[%emt 00:00:08]} 2. Nf3 {[%clk
00:13:02]} {[%emt 00:00:01]} f5 {[%clk 00:12:56]} {[%emt 00:00:01]} 3. Nxe5
{[%clk 00:12:34]} {[%emt 00:00:29]} Qf6 {[%clk 00:12:56]} {[%emt 00:00:02]} 4.
Qh5+ {[%clk 00:11:54]} {[%emt 00:00:42]} g6 {[%clk 00:12:56]} {[%emt 00:00:03]}
5. Nxg6 {[%clk 00:11:53]} {[%emt 00:00:02]} hxg6 {[%clk 00:12:56]} {[%emt
00:00:02]} 6. Qf3 {[%clk 00:11:33]} {[%emt 00:00:23]} Nc6 {[%clk 00:12:44]}
{[%emt 00:00:13]} 7. Nc3 {[%clk 00:11:21]} {[%emt 00:00:13]} d6 {[%clk
00:11:07]} {[%emt 00:01:39]} 8. Bc4 {[%clk 00:10:42]} {[%emt 00:00:41]} Ne5
{[%clk 00:10:56]} {[%emt 00:00:14]} 9. Qe2 {[%clk 00:10:22]} {[%emt 00:00:22]}
Be6 {[%clk 00:10:28]} {[%emt 00:00:30]} 10. Bxe6 {[%clk 00:09:50]} {[%emt
00:00:33]} Qxe6 {[%clk 00:10:27]} {[%emt 00:00:02]} 11. Nd5 {[%clk 00:09:42]}
{[%emt 00:00:11]} O-O-O {[%clk 00:10:22]} {[%emt 00:00:08]} 12. d4 {[%clk
00:09:06]} {[%emt 00:00:37]} Nc6 {[%emt 00:00:22]} 13. c3 {[%clk 00:08:38]}
{[%emt 00:00:29]} Nf6 {[%clk 00:09:41]} {[%emt 00:00:25]} 14. Nxf6 {[%clk
00:07:58]} {[%emt 00:00:41]} Qxf6 {[%clk 00:09:40]} {[%emt 00:00:03]} 15. Qf3
{[%clk 00:07:05]} {[%emt 00:00:55]} Bg7 {[%clk 00:09:31]} {[%emt 00:00:11]} 16.
g3 {[%clk 00:06:33]} {[%emt 00:00:35]} Rhe8 {[%clk 00:09:16]} {[%emt 00:00:17]}
17. O-O {[%clk 00:05:21]} {[%emt 00:01:14]} Rxe4 {[%clk 00:09:00]} {[%emt
00:00:18]} 18. h4 {[%clk 00:05:12]} {[%emt 00:00:11]} Rde8 {[%clk 00:08:53]}
{[%emt 00:00:10]} 19. Bg5 {[%clk 00:04:54]} {[%emt 00:00:19]} Qf8 {[%clk
00:08:44]} {[%emt 00:00:11]} 20. Qd3 {[%clk 00:04:21]} {[%emt 00:00:35]} Bh6
{[%clk 00:08:35]} {[%emt 00:00:11]} 21. Qd2 {[%clk 00:03:57]} {[%emt 00:00:25]}
f4 {[%clk 00:07:48]} {[%emt 00:00:51]} 22. Bxh6 {[%clk 00:03:14]} {[%emt
00:00:44]} Qxh6 {[%clk 00:07:48]} {[%emt 00:00:02]} 23. Rae1 {[%clk 00:02:59]}
{[%emt 00:00:13]} Rxe1 {[%clk 00:07:45]} {[%emt 00:00:09]} 24. Rxe1 {[%clk
00:03:00]} {[%emt 00:00:01]} Rxe1+ {[%clk 00:07:25]} {[%emt 00:00:22]} 25. Qxe1
{[%clk 00:03:00]} {[%emt 00:00:02]} fxg3 {[%clk 00:05:45]} {[%emt 00:01:42]} 26.
fxg3 {[%clk 00:02:46]} {[%emt 00:00:16]} Nd8 {[%clk 00:04:49]} {[%emt
00:00:58]} 27. d5 {[%clk 00:02:24]} {[%emt 00:00:24]} Qf8 {[%clk 00:04:40]}
{[%emt 00:00:11]} 28. Qe4 {[%clk 00:02:01]} {[%emt 00:00:24]} Qf7 {[%clk
00:04:34]} {[%emt 00:00:09]} 29. g4 {[%clk 00:01:43]} {[%emt 00:00:20]} b6
{[%clk 00:04:00]} {[%emt 00:00:36]} 30. h5 {[%clk 00:01:33]} {[%emt 00:00:12]}
gxh5 {[%clk 00:03:54]} {[%emt 00:00:08]} 31. Qf5+ {[%clk 00:01:26]} {[%emt
00:00:09]} Qxf5 {[%clk 00:03:49]} {[%emt 00:00:07]} 32. gxf5 {[%clk 00:01:27]}
{[%emt 00:00:02]} Kd7 {[%clk 00:03:49]} {[%emt 00:00:02]} 33. Kg2 {[%emt
00:00:04]} Ke7 {[%emt 00:00:02]} 34. Kg3 {[%emt 00:00:02]} Kf6 {[%emt
00:00:01]} 35. Kf4 {[%clk 00:01:12]} {[%emt 00:00:09]} Nf7 {[%clk 00:03:41]}
{[%emt 00:00:09]} 36. b4 {[%clk 00:01:06]} {[%emt 00:00:07]} Nh6 {[%clk
00:03:42]} {[%emt 00:00:02]} 37. c4 {[%clk 00:01:04]} {[%emt 00:00:05]} Nxf5
{[%clk 00:03:41]} {[%emt 00:00:02]} 0-1

[Event "St Kilda East and Caulfield Chess Club RAPID Term 3, 2025"]
[Site "st kilda east, Australia"]
[Date "2025.07.21"]
[Round "2.2"]
[White "Mauncell-Paea, Hyrem"]
[Black "Karboulahanos, Kris"]
[Result "1/2-1/2"]
[TimeControl "13 minutes per game plus 2 seconds from move 1"]
[WhiteElo "815"]
[BlackElo "1147"]

1. d4 {[%clk 00:12:58]} {[%emt 00:00:06]} d5 {[%clk 00:13:02]} {[%emt
00:00:03]} 2. Nf3 {[%clk 00:12:56]} {[%emt 00:00:04]} Nf6 {[%clk 00:13:00]}
{[%emt 00:00:04]} 3. e3 {[%clk 00:12:53]} {[%emt 00:00:04]} e6 {[%clk
00:13:00]} {[%emt 00:00:03]} 4. Bd3 {[%clk 00:12:50]} {[%emt 00:00:05]} Bd6
{[%clk 00:13:00]} {[%emt 00:00:02]} 5. Nbd2 {[%clk 00:12:41]} {[%emt 00:00:10]}
c6 {[%clk 00:12:58]} {[%emt 00:00:04]} 6. c3 {[%clk 00:12:36]} {[%emt
00:00:07]} Nbd7 {[%clk 00:12:49]} {[%emt 00:00:10]} 7. O-O {[%clk 00:12:28]}
{[%emt 00:00:10]} O-O {[%clk 00:12:45]} {[%emt 00:00:06]} 8. Re1 {[%clk
00:12:27]} {[%emt 00:00:03]} e5 {[%clk 00:12:45]} {[%emt 00:00:03]} 9. dxe5
{[%clk 00:12:22]} {[%emt 00:00:07]} Nxe5 {[%clk 00:12:43]} {[%emt 00:00:04]} 10.
Nxe5 {[%clk 00:12:10]} {[%emt 00:00:14]} Bxe5 {[%clk 00:12:42]} {[%emt
00:00:03]} 11. Nf3 {[%clk 00:12:09]} {[%emt 00:00:03]} Bd6 {[%clk 00:12:34]}
{[%emt 00:00:10]} 12. b3 {[%clk 00:12:00]} {[%emt 00:00:11]} Qc7 {[%clk
00:12:25]} {[%emt 00:00:12]} 13. h3 {[%clk 00:11:34]} {[%emt 00:00:28]} Ne4
{[%clk 00:12:20]} {[%emt 00:00:07]} 14. Bb2 {[%clk 00:11:24]} {[%emt 00:00:12]}
f5 {[%clk 00:11:44]} {[%emt 00:00:38]} 15. c4 {[%clk 00:10:47]} {[%emt
00:00:39]} Bb4 {[%clk 00:11:31]} {[%emt 00:00:14]} 16. Rf1 {[%clk 00:10:27]}
{[%emt 00:00:22]} Be6 {[%clk 00:11:20]} {[%emt 00:00:13]} 17. Qc2 {[%clk
00:09:47]} {[%emt 00:00:43]} Be7 {[%clk 00:10:32]} {[%emt 00:00:50]} 18. Bxe4
{[%clk 00:09:15]} {[%emt 00:00:34]} fxe4 {[%clk 00:10:17]} {[%emt 00:00:18]} 19.
cxd5 {[%clk 00:08:10]} {[%emt 00:01:06]} exf3 {[%clk 00:09:28]} {[%emt
00:00:50]} 20. dxe6 {[%clk 00:07:58]} {[%emt 00:00:14]} fxg2 {[%clk 00:09:02]}
{[%emt 00:00:29]} 21. Rfd1 {[%clk 00:07:39]} {[%emt 00:00:21]} Bh4 {[%clk
00:08:46]} {[%emt 00:00:18]} 22. Rd7 {[%clk 00:04:56]} {[%emt 00:02:45]} Bxf2+
{[%clk 00:08:20]} {[%emt 00:00:28]} 23. Qxf2 {[%clk 00:04:21]} {[%emt
00:00:37]} Rxf2 {[%clk 00:08:06]} {[%emt 00:00:15]} 24. Rxc7 {[%clk 00:03:55]}
{[%emt 00:00:28]} Rxb2 {[%clk 00:08:01]} {[%emt 00:00:07]} 25. e7 {[%clk
00:03:17]} {[%emt 00:00:40]} Kf7 {[%clk 00:07:39]} {[%emt 00:00:24]} 26. Rd1
{[%clk 00:03:10]} {[%emt 00:00:08]} Re8 {[%clk 00:07:33]} {[%emt 00:00:08]} 27.
Rdd7 {[%clk 00:02:18]} {[%emt 00:00:54]} Ke6 {[%clk 00:07:13]} {[%emt
00:00:22]} 28. Rxb7 {[%clk 00:02:15]} {[%emt 00:00:06]} Rxa2 {[%clk 00:06:44]}
{[%emt 00:00:32]} 29. Rxa7 {[%clk 00:02:09]} {[%emt 00:00:07]} Rxa7 {[%clk
00:06:35]} {[%emt 00:00:12]} 30. Rxa7 {[%clk 00:02:08]} {[%emt 00:00:02]} Rxe7
{[%clk 00:06:36]} 31. Rxe7+ {[%clk 00:01:56]} {[%emt 00:00:14]} Kxe7 {[%clk
00:06:37]} {[%emt 00:00:01]} 32. Kxg2 {[%clk 00:01:54]} {[%emt 00:00:02]} Kd6
{[%clk 00:06:37]} {[%emt 00:00:04]} 33. Kf3 {[%clk 00:01:54]} {[%emt 00:00:02]}
Kc5 {[%clk 00:06:37]} {[%emt 00:00:02]} 34. Ke4 {[%clk 00:01:43]} {[%emt
00:00:01]} g6 {[%clk 00:06:38]} {[%emt 00:00:13]} 35. Ke5 {[%clk 00:01:39]}
{[%emt 00:00:06]} Kb4 {[%clk 00:06:38]} {[%emt 00:00:02]} 36. Kd6 {[%clk
00:01:39]} {[%emt 00:00:02]} Kxb3 {[%clk 00:06:16]} {[%emt 00:00:25]} 37. Kxc6
{[%clk 00:01:39]} {[%emt 00:00:02]} Kc4 {[%clk 00:06:15]} {[%emt 00:00:03]} 38.
Kd6 {[%clk 00:01:29]} {[%emt 00:00:12]} h5 {[%clk 00:06:15]} {[%emt 00:00:02]}
39. e4 {[%clk 00:01:30]} {[%emt 00:00:02]} g5 {[%clk 00:06:16]} {[%emt
00:00:01]} 40. e5 {[%clk 00:01:31]} g4 {[%clk 00:06:17]} 41. hxg4 {[%clk
00:01:30]} {[%emt 00:00:03]} hxg4 {[%clk 00:06:17]} {[%emt 00:00:01]} 42. e6
{[%clk 00:01:31]} {[%emt 00:00:01]} g3 {[%clk 00:06:18]} {[%emt 00:00:01]} 43.
e7 {[%clk 00:01:32]} {[%emt 00:00:01]} g2 {[%clk 00:06:18]} {[%emt 00:00:02]}
44. e8=Q {[%emt 00:00:06]} g1=Q {[%clk 00:06:14]} {[%emt 00:00:02]} 45. Qc6+
{[%clk 00:01:26]} {[%emt 00:00:08]} Kd3 {[%clk 00:06:08]} {[%emt 00:00:08]} 46.
Qb5+ {[%clk 00:01:24]} {[%emt 00:00:04]} Ke4 {[%clk 00:06:06]} {[%emt
00:00:05]} 47. Qc4+ {[%clk 00:01:23]} {[%emt 00:00:03]} Qd4+ {[%clk 00:06:03]}
{[%emt 00:00:04]} 48. Qxd4+ {[%clk 00:01:16]} {[%emt 00:00:09]} Kxd4 {[%clk
00:06:03]} {[%emt 00:00:02]} 1/2-1/2